fUST/lending_fUST_20250910
["ID","MTS","AMOUNT","RATE_DAILY","PERIOD"]
[384657853,1757507432448,-400.01,0.00014789,2]
[384657855,1757507432546,-199.99,0.00014789,2]
[384657857,1757507432575,-162.0,0.00015876,2]
[384657860,1757507432605,-420.0,0.00015876,2]
[384657865,1757507432635,-1680.0,0.00015949,2]
[384657867,1757507432668,-212.2231088,0.00016,2]
[384657868,1757507432699,-720.0,0.00016268,2]
[384657869,1757507432728,-480.0,0.0001644,2]
[384657870,1757507432759,-480.0,0.0001644,2]
[384657872,1757507432788,-480.0,0.0001644,2]
[384657874,1757507433007,-417.93098691,0.0001644,2]
[384657875,1757507433038,-480.0,0.0001644,2]
[384657876,1757507433069,-480.0,0.0001644,2]
[384657877,1757507433101,-480.0,0.0001644,2]
[384657878,1757507433134,-289.97,0.0001644,2]
[384657879,1757507433176,-480.0,0.0001644,2]
[384657880,1757507433213,-480.0,0.0001644,2]
[384657881,1757507433246,-480.0,0.0001644,2]
[384657882,1757507433306,379.9161821,0.00013365,2]
[384657883,1757507433673,-21256.139489,0.00016441,2]
[384657884,1757507433683,-480.0,0.00016714,2]
[384657885,1757507433692,-480.0,0.00016714,2]
[384657886,1757507433701,-480.0,0.00016714,2]
[384657887,1757507433710,-480.88252282,0.00016714,2]
[384657888,1757507433719,-480.0,0.00016714,2]
[384657889,1757507433728,-501.24484171,0.0001678,2]
[384657890,1757507433738,-480.0,0.00016988,2]
[384657891,1757507433747,-480.0,0.00016988,2]
[384657892,1757507433757,-2054.7,0.0001699,3]
[384657893,1757507433766,-1027.35,0.0001699,3]
[384657894,1757507433775,-513.68,0.0001699,3]
[384657895,1757507433784,-256.84,0.0001699,3]
[384657896,1757507433793,-770.54,0.0001699,3]
[384657897,1757507433802,-109585.22837662,0.00017,2]
[384657898,1757507433812,-1608.36551908,0.00017011,2]
[384657899,1757507433821,-211.65070443,0.00017111,2]
[384657900,1757507433830,-218.78111207,0.00017111,2]
[384657901,1757507433839,-500.0,0.00017163,2]
[384657902,1757507433849,-500.0,0.00017163,2]
[384657903,1757507433858,-500.0,0.00017163,2]
[384657904,1757507433867,-199.64761663,0.00017163,2]
[384657905,1757507433876,-480.0,0.00017262,2]
[384657906,1757507433886,-587.0,0.00017385,2]
[384657907,1757507433896,-480.0,0.00017536,2]
[384657908,1757507433905,-1588.0,0.00017544,2]
[384657909,1757507433921,-2100.63381297,0.000176,2]
[384657910,1757507433931,-152.4932182,0.0001764,2]
[384657911,1757507433940,-805.29473766,0.0001771,2]
[384657912,1757507433950,-1000.0,0.0001771,2]
[384657913,1757507433959,-500.0,0.0001771,2]
[384657914,1757507433969,-1608.36551904,0.00017804,2]
[384657915,1757507433979,-480.0,0.0001781,2]
[384657916,1757507433988,-500.0,0.0001781,2]
[384657917,1757507433998,-864.0,0.00017895,2]
[384657918,1757507434009,-478.41874551,0.00017999,2]
[384657919,1757507434019,-500.0,0.00017999,2]
[384657920,1757507434029,-500.0,0.00017999,2]
[384657921,1757507434039,-500.0,0.00017999,2]
[384657922,1757507434048,-500.0,0.00017999,2]
[384657923,1757507434058,-500.0,0.00017999,2]
[384657924,1757507434068,-170.5763716,0.00017999,2]
[384657925,1757507434078,-500.0,0.00017999,2]
[384657926,1757507434087,-500.0,0.00017999,2]
[384657927,1757507434097,-500.0,0.00017999,2]
[384657928,1757507434107,-500.0,0.00017999,2]
[384657929,1757507434116,-176.76804529,0.00017999,2]
[384657930,1757507434126,-500.0,0.00017999,2]
[384657931,1757507434135,-154.65437591,0.00017999,2]
[384657932,1757507434147,-500.0,0.00017999,2]
[384657933,1757507434157,-500.0,0.00017999,2]
[384657934,1757507434174,-500.0,0.00017999,2]
[384657935,1757507434186,-500.0,0.00017999,2]
[384657936,1757507434197,-500.0,0.00017999,2]
[384657937,1757507434206,-500.0,0.00017999,2]
[384657938,1757507434215,-500.0,0.00017999,2]
[384657939,1757507434224,-500.0,0.00017999,2]
[384657940,1757507434234,-500.0,0.00017999,2]
[384657941,1757507434244,-500.0,0.00017999,2]
[384657942,1757507434253,-500.0,0.00017999,2]
[384657943,1757507434262,-500.0,0.00017999,2]
[384657944,1757507434272,-500.0,0.00017999,2]
[384657945,1757507434282,-500.0,0.00017999,2]
[384657946,1757507434292,-500.0,0.00017999,2]
[384657947,1757507434301,-500.0,0.00017999,2]
[384657948,1757507434310,-500.0,0.00017999,2]
[384657949,1757507434319,-500.0,0.00017999,2]
[384657950,1757507434330,-500.0,0.00017999,2]
[384657951,1757507434340,-500.0,0.00017999,2]
[384657952,1757507434349,-500.0,0.00017999,2]
[384657953,1757507434359,-500.0,0.00017999,2]
[384657954,1757507434369,-500.0,0.00017999,2]
[384657955,1757507434379,-525.89110481,0.00017999,2]
[384657956,1757507434389,-500.0,0.00017999,2]
[384657957,1757507434398,-500.0,0.00017999,2]
[384657958,1757507434408,-500.0,0.00017999,2]
[384657959,1757507434425,-500.0,0.00017999,2]
[384657960,1757507434435,-500.0,0.00017999,2]
[384657961,1757507434444,-500.0,0.00017999,2]
[384657962,1757507434453,-500.0,0.00017999,2]
[384657963,1757507434463,-500.0,0.00017999,2]
[384657964,1757507434472,-500.0,0.00017999,2]
[384657965,1757507434483,-500.0,0.00017999,2]
[384657966,1757507434493,-500.0,0.00017999,2]
[384657967,1757507434502,-500.0,0.00017999,2]
[384657968,1757507434511,-500.0,0.00017999,2]
[384657969,1757507434521,-500.0,0.00017999,2]
[384657970,1757507434531,-500.0,0.00017999,2]
[384657971,1757507434541,-500.0,0.00017999,2]
[384657972,1757507434550,-500.0,0.00017999,2]
[384657973,1757507434559,-500.0,0.00017999,2]
[384657974,1757507434568,-500.0,0.00017999,2]
[384657975,1757507434578,-417.1059301,0.00017999,2]
[384657976,1757507434588,-500.0,0.00017999,2]
[384657977,1757507434597,-25996.55035865,0.00018,2]
[384657978,1757507434674,-4999.493403,0.00018,2]
[384658011,1757507438309,-480.0,0.0001644,2]
[384658013,1757507438319,-480.0,0.00016714,2]
[384658015,1757507438329,-203.65813919,0.00016999,2]
[384658017,1757507438338,-368.87135492,0.00016999,2]
[384658019,1757507438348,-19.62050589,0.00017999,2]
[384658022,1757507438364,-480.37949411,0.00017999,2]
[384658024,1757507438373,-1705.6187587,0.00018,2]
[384658235,1757507440376,-16970.63844177,0.00017162,2]
[384658237,1757507440387,-55862.84329645,0.00018,2]
[384658245,1757507440478,-36554.96932653,0.00018,2]
[384658760,1757507445829,-480.0,0.00016276,2]
[384658762,1757507445839,-480.0,0.0001644,2]
[384658764,1757507445848,-480.0,0.00016714,2]
[384658766,1757507445858,-486.98978832,0.00016988,2]
[384658768,1757507445867,-6768.73195482,0.00018,2]
[384658770,1757507445877,-480.0,0.00018084,2]
[384658772,1757507445887,-170.255502,0.000181,2]
[384658774,1757507445897,-829.1321837,0.00018235,2]
[384658776,1757507445907,-500.0,0.00018258,2]
[384658778,1757507445918,-500.0,0.00018273,2]
[384658780,1757507445931,-480.0,0.00018358,2]
[384658782,1757507445940,-4109.4,0.0001836,3]
[384658784,1757507445950,-2054.7,0.0001836,3]
[384658786,1757507445959,-1027.36,0.0001836,3]
[384658788,1757507445969,-513.68,0.0001836,3]
[384658790,1757507445978,-1608.36551904,0.00018597,2]
[384658792,1757507445987,-480.0,0.00018632,2]
[384658794,1757507445996,-480.0,0.00018906,2]
[384658795,1757507446006,-823.0,0.00019036,2]
[384658798,1757507446015,-480.0,0.0001918,2]
[384658799,1757507446025,-201.1663036,0.00019244,2]
[384658801,1757507446035,-1608.36551904,0.0001939,2]
[384658803,1757507446044,-394.92406315,0.00019453,2]
[384658805,1757507446054,-203.30414021,0.00019616,2]
[384658807,1757507446063,-846.88337432,0.00019616,2]
[384658809,1757507446073,-530.87637315,0.00019616,2]
[384658811,1757507446082,-233.08191698,0.00019616,2]
[384658813,1757507446092,-160.0,0.00019616,2]
[384658816,1757507446101,-397.05587264,0.00019647,2]
[384658817,1757507446111,-500.0,0.00019647,2]
[384658819,1757507446120,-500.0,0.00019647,2]
[384658822,1757507446130,-278.29333172,0.00019647,2]
[384658824,1757507446140,-500.0,0.00019647,2]
[384658826,1757507446150,-1000.0,0.00019684,20]
[384658828,1757507446161,-1200.0,0.00019742,2]
[384658830,1757507446177,-217.67150996,0.00019805,2]
[384658832,1757507446187,-480.0,0.00019866,2]
[384658834,1757507446197,-480.0,0.00019866,2]
[384658835,1757507446207,-480.0,0.00019866,2]
[384658837,1757507446216,-480.0,0.00019866,2]
[384658839,1757507446226,-170.255502,0.00019878,2]
[384658842,1757507446236,-10472.24476592,0.000199,2]
[384658844,1757507446248,-154.21,0.0001999,3]
[384658846,1757507446257,-14455.39100615,0.0002,2]
[384658848,1757507446266,-365.43295588,0.0002,2]
[384658850,1757507446276,-20000.0,0.0002,2]
[384658851,1757507446285,-1201.59213517,0.0002,2]
[384658854,1757507446294,-480.0,0.0002014,2]
[384658856,1757507446304,-480.0,0.0002014,2]
[384658857,1757507446313,-152.49321819,0.00020173,2]
[384658860,1757507446323,-7038.12796514,0.00020183,2]
[384658861,1757507446333,-1608.36551904,0.00020183,2]
[384658863,1757507446342,-519.33,0.00020194,2]
[384658866,1757507446352,-480.0,0.00020194,2]
[384658867,1757507446361,-480.0,0.00020194,2]
[384658870,1757507446372,-480.0,0.00020194,2]
[384658872,1757507446381,-480.0,0.00020194,2]
[384658873,1757507446390,-480.0,0.00020194,2]
[384658875,1757507446399,-480.0,0.00020194,2]
[384658877,1757507446410,-480.0,0.00020194,2]
[384658879,1757507446424,-480.0,0.00020194,2]
[384658882,1757507446434,-480.0,0.00020194,2]
[384658884,1757507446443,-480.0,0.00020194,2]
[384658885,1757507446452,-480.0,0.00020194,2]
[384658887,1757507446460,-480.0,0.00020194,2]
[384658889,1757507446469,-480.0,0.00020194,2]
[384658891,1757507446479,-561.99870955,0.00020194,2]
[384658893,1757507446489,-480.0,0.00020194,2]
[384658895,1757507446499,-616.61,0.00020194,2]
[384658897,1757507446508,-480.0,0.00020194,2]
[384658899,1757507446517,-480.0,0.00020194,2]
[384658901,1757507446527,-480.0,0.00020194,2]
[384658904,1757507446537,-480.0,0.00020194,2]
[384658906,1757507446547,-480.0,0.00020194,2]
[384658908,1757507446558,-480.0,0.00020194,2]
[384658910,1757507446567,-1865.35,0.00020194,2]
[384658911,1757507446576,-480.0,0.00020194,2]
[384658914,1757507446585,-480.0,0.00020194,2]
[384658915,1757507446595,-480.0,0.00020194,2]
[384658917,1757507446603,-480.0,0.00020194,2]
[384658919,1757507446613,-480.0,0.00020195,2]
[384658921,1757507446623,-480.0,0.00020195,2]
[384658923,1757507446632,-480.0,0.00020195,2]
[384658925,1757507446641,-480.0,0.00020195,2]
[384658927,1757507446650,-480.0,0.00020195,2]
[384658929,1757507446659,-480.0,0.00020195,2]
[384658931,1757507446673,-480.0,0.00020195,2]
[384658933,1757507446683,-480.0,0.00020195,2]
[384658935,1757507446692,-480.0,0.00020195,2]
[384658937,1757507446701,-480.0,0.00020195,2]
[384658939,1757507446710,-480.0,0.00020195,2]
[384658941,1757507446720,-480.0,0.00020195,2]
[384658943,1757507446729,-480.0,0.00020195,2]
[384658945,1757507446738,-480.0,0.00020195,2]
[384658947,1757507446748,-480.0,0.00020195,2]
[384658949,1757507446757,-480.0,0.00020195,2]
[384658951,1757507446766,-480.0,0.00020195,2]
[384658953,1757507446775,-480.0,0.00020195,2]
[384658955,1757507446785,-480.0,0.00020195,2]
[384658957,1757507446794,-480.0,0.00020195,2]
[384658959,1757507446804,-480.0,0.00020195,2]
[384658961,1757507446813,-480.0,0.00020195,2]
[384658963,1757507446822,-330.93530943,0.00020195,2]
[384658965,1757507446832,-480.0,0.00020195,2]
[384658967,1757507446841,-480.0,0.00020195,2]
[384658969,1757507446850,-480.0,0.00020195,2]
[384658971,1757507446860,-480.0,0.00020195,2]
[384658973,1757507446869,-480.0,0.00020195,2]
[384658975,1757507446879,-487.83040481,0.00020195,2]
[384658977,1757507446888,-480.0,0.00020195,2]
[384658979,1757507446897,-480.0,0.00020195,2]
[384658981,1757507446907,-480.0,0.00020195,2]
[384658983,1757507446916,-485.18319922,0.00020195,2]
[384658985,1757507446933,-480.0,0.00020195,2]
[384658987,1757507446942,-480.0,0.00020195,2]
[384658989,1757507446955,-480.0,0.00020195,2]
[384658991,1757507446976,-480.0,0.00020195,2]
[384658993,1757507446991,-162.51787328,0.00020195,2]
[384658995,1757507447000,-480.0,0.00020195,2]
[384658997,1757507447010,-621.32,0.00020195,2]
[384658999,1757507447020,-480.0,0.00020195,2]
[384659001,1757507447030,-480.0,0.00020195,2]
[384659003,1757507447039,-480.0,0.00020195,2]
[384659005,1757507447048,-480.0,0.00020195,2]
[384659007,1757507447057,-480.0,0.00020195,2]
[384659009,1757507447067,-480.0,0.00020195,2]
[384659011,1757507447076,-480.0,0.00020195,2]
[384659013,1757507447086,-480.0,0.00020195,2]
[384659015,1757507447095,-480.0,0.00020195,2]
[384659017,1757507447105,-480.0,0.00020195,2]
[384659019,1757507447114,-480.0,0.00020195,2]
[384659021,1757507447124,-262.25955695,0.00020195,2]
[384659023,1757507447133,-480.0,0.00020195,2]
[384659025,1757507447144,-480.0,0.00020195,2]
[384659027,1757507447154,-480.0,0.00020195,2]
[384659029,1757507447166,-480.0,0.00020195,2]
[384659031,1757507447181,-480.0,0.00020195,2]
[384659033,1757507447191,-480.0,0.00020195,2]
[384659035,1757507447201,-480.0,0.00020195,2]
[384659037,1757507447210,-480.0,0.00020195,2]
[384659039,1757507447220,-480.0,0.00020195,2]
[384659041,1757507447230,-480.0,0.00020195,2]
[384659043,1757507447239,-480.0,0.00020195,2]
[384659045,1757507447250,-480.0,0.00020195,2]
[384659047,1757507447260,-380.0,0.00020195,2]
[384659048,1757507447269,-480.0,0.00020195,2]
[384659049,1757507447279,-480.0,0.00020195,2]
[384659050,1757507447288,-480.0,0.00020195,2]
[384659051,1757507447297,-480.0,0.00020195,2]
[384659052,1757507447307,-480.0,0.00020195,2]
[384659053,1757507447316,-480.0,0.00020195,2]
[384659054,1757507447326,-1940.94,0.00020195,2]
[384659055,1757507447335,-480.0,0.00020195,2]
[384659056,1757507447345,-480.0,0.00020195,2]
[384659057,1757507447354,-480.0,0.00020195,2]
[384659058,1757507447364,-480.0,0.00020195,2]
[384659059,1757507447373,-480.0,0.00020195,2]
[384659060,1757507447383,-487.5170927,0.00020195,2]
[384659062,1757507447393,-480.0,0.00020195,2]
[384659064,1757507447403,-782.32,0.00020195,2]
[384659066,1757507447412,-480.0,0.00020195,2]
[384659068,1757507447426,-480.0,0.00020195,2]
[384659070,1757507447435,-534.07497004,0.00020195,2]
[384659072,1757507447444,-480.0,0.00020195,2]
[384659074,1757507447454,-486.79677378,0.00020195,2]
[384659087,1757507447561,-500.0,0.00020195,2]
[384659089,1757507447570,-500.0,0.00020195,2]
[384659091,1757507447579,-409.0,0.00020205,2]
[384659093,1757507447589,-500.0,0.00020273,2]
[384659095,1757507447598,-500.0,0.00020273,2]
[384659097,1757507447608,-500.0,0.00020273,2]
[384659099,1757507447617,-500.0,0.00020273,2]
[384659101,1757507447627,-500.0,0.00020273,2]
[384659103,1757507447636,-500.0,0.00020273,2]
[384659105,1757507447645,-500.0,0.00020273,2]
[384659107,1757507447654,-500.0,0.00020273,2]
[384659109,1757507447664,-500.0,0.00020273,2]
[384659111,1757507447677,-500.0,0.00020273,2]
[384659113,1757507447686,-500.0,0.00020273,2]
[384659115,1757507447695,-500.0,0.00020273,2]
[384659117,1757507447705,-500.0,0.00020273,2]
[384659119,1757507447714,-500.0,0.00020273,2]
[384659120,1757507447724,-500.0,0.00020273,2]
[384659122,1757507447733,-500.0,0.00020273,2]
[384659125,1757507447743,-585.91552228,0.00020273,2]
[384659127,1757507447752,-500.0,0.00020273,2]
[384659128,1757507447761,-500.0,0.00020273,2]
[384659131,1757507447771,-500.0,0.00020273,2]
[384659132,1757507447780,-480.0,0.00020282,2]
[384659134,1757507447790,-480.0,0.00020282,2]
[384659137,1757507447799,-480.0,0.00020282,2]
[384659139,1757507447809,-866.85,0.00020282,2]
[384659140,1757507447818,-480.0,0.00020282,2]
[384659143,1757507447827,-480.0,0.00020282,2]
[384659144,1757507447837,-480.0,0.00020282,2]
[384659146,1757507447846,-170.87036509,0.00020283,2]
[384659148,1757507447855,-151.0,0.00020283,2]
[384659150,1757507447865,-151.0,0.00020283,2]
[384659153,1757507447874,-151.0,0.00020283,2]
[384659155,1757507447883,-166.11606898,0.00020283,2]
[384659157,1757507447893,-62081.1165586,0.00020283,2]
[384659159,1757507447902,-157.0,0.00020283,2]
[384659161,1757507447911,-500.0,0.00020283,2]
[384659162,1757507447922,-142330.05133391,0.00020284,2]
[384659164,1757507447932,-151.0,0.00020284,2]
[384659166,1757507447942,-151.0,0.00020284,2]
[384659168,1757507447951,-161.1272,0.00020284,2]
[384659170,1757507447962,-145.29487364,0.00020293,2]
[384659173,1757507447971,-489.440242,0.00020293,2]
[384659174,1757507447981,-480.0,0.00020293,2]
[384659176,1757507447990,-480.0,0.00020293,2]
[384659179,1757507447999,-480.0,0.00020293,2]
[384659180,1757507448009,-480.0,0.00020293,2]
[384659182,1757507448019,-480.0,0.00020293,2]
[384659185,1757507448030,-480.0,0.00020293,2]
[384659187,1757507448040,-480.0,0.00020293,2]
[384659189,1757507448049,-484.9265449,0.00020293,2]
[384659191,1757507448059,-480.0,0.00020293,2]
[384659192,1757507448069,-480.0,0.00020293,2]
[384659194,1757507448079,-480.0,0.00020293,2]
[384659196,1757507448088,-482.09187966,0.00020293,2]
[384659198,1757507448098,-480.0,0.00020293,2]
[384659200,1757507448108,-311.64,0.00020293,2]
[384659202,1757507448118,-475.81948302,0.00020293,2]
[384659204,1757507448127,-480.0,0.00020293,2]
[384659206,1757507448136,-480.0,0.00020293,2]
[384659208,1757507448151,-480.0,0.00020293,2]
[384659210,1757507448162,-480.0,0.00020293,2]
[384659212,1757507448177,-480.0,0.00020293,2]
[384659214,1757507448187,-483.13792894,0.00020293,2]
[384659216,1757507448196,-549.97,0.00020293,2]
[384659218,1757507448205,-480.0,0.00020293,2]
[384659220,1757507448215,-480.0,0.00020293,2]
[384659222,1757507448226,-480.0,0.00020293,2]
[384659224,1757507448236,-594.26,0.00020293,2]
[384659226,1757507448246,-480.0,0.00020293,2]
[384659228,1757507448257,-480.0,0.00020293,2]
[384659230,1757507448266,-480.0,0.00020293,2]
[384659232,1757507448276,-480.0,0.00020293,2]
[384659234,1757507448286,-480.0,0.00020293,2]
[384659236,1757507448296,-480.0,0.00020293,2]
[384659238,1757507448305,-480.0,0.00020293,2]
[384659240,1757507448316,-477.02700611,0.00020293,2]
[384659242,1757507448325,-247.04,0.00020293,2]
[384659244,1757507448335,-169.79034972,0.00020293,2]
[384659246,1757507448346,-480.0,0.00020293,2]
[384659248,1757507448357,-491.26,0.00020293,2]
[384659250,1757507448367,-480.0,0.00020293,2]
[384659252,1757507448377,-480.0,0.00020293,2]
[384659254,1757507448386,-480.0,0.00020293,2]
[384659256,1757507448396,-483.19625541,0.00020293,2]
[384659258,1757507448406,-480.0,0.00020293,2]
[384659260,1757507448415,-480.0,0.00020293,2]
[384659262,1757507448429,-480.0,0.00020293,2]
[384659264,1757507448439,-480.0,0.00020293,2]
[384659267,1757507448449,-480.0,0.00020293,2]
[384659268,1757507448459,-480.0,0.00020293,2]
[384659270,1757507448469,-481.49191245,0.00020293,2]
[384659273,1757507448480,-480.0,0.00020293,2]
[384659275,1757507448490,-410.9844104,0.00020293,2]
[384659277,1757507448499,-480.0,0.00020293,2]
[384659279,1757507448509,-480.0,0.00020293,2]
[384659281,1757507448518,-480.0,0.00020293,2]
[384659283,1757507448527,-480.0,0.00020293,2]
[384659285,1757507448536,-480.0,0.00020293,2]
[384659287,1757507448546,-480.0,0.00020293,2]
[384659289,1757507448556,-480.0,0.00020293,2]
[384659291,1757507448565,-480.0,0.00020293,2]
[384659293,1757507448574,-480.0,0.00020293,2]
[384659295,1757507448583,-480.0,0.00020293,2]
[384659297,1757507448592,-481.58661557,0.00020293,2]
[384659299,1757507448601,-480.0,0.00020293,2]
[384659301,1757507448611,-480.0,0.00020293,2]
[384659303,1757507448620,-480.0,0.00020293,2]
[384659305,1757507448629,-480.0,0.00020293,2]
[384659307,1757507448639,-480.0,0.00020293,2]
[384659308,1757507448649,-480.0,0.00020293,2]
[384659310,1757507448658,-480.0,0.00020293,2]
[384659312,1757507448667,-425.6348085,0.00020293,2]
[384659315,1757507448679,-480.0,0.00020293,2]
[384659316,1757507448688,-480.0,0.00020293,2]
[384659319,1757507448700,-480.0,0.00020293,2]
[384659320,1757507448712,-480.0,0.00020293,2]
[384659322,1757507448721,-480.0,0.00020293,2]
[384659324,1757507448730,-480.0,0.00020293,2]
[384659326,1757507448740,-480.0,0.00020293,2]
[384659328,1757507448749,-480.0,0.00020293,2]
[384659330,1757507448758,-500.0,0.00020293,2]
[384659332,1757507448768,-480.0,0.00020293,2]
[384659334,1757507448778,-1000.0,0.00020293,2]
[384659336,1757507448787,-480.0,0.00020293,2]
[384659338,1757507448796,-480.0,0.00020293,2]
[384659340,1757507448806,-480.0,0.00020293,2]
[384659342,1757507448815,-480.0,0.00020293,2]
[384659344,1757507448824,-480.0,0.00020293,2]
[384659346,1757507448834,-480.0,0.00020293,2]
[384659348,1757507448844,-480.0,0.00020293,2]
[384659350,1757507448853,-480.0,0.00020293,2]
[384659352,1757507448863,-480.0,0.00020293,2]
[384659354,1757507448873,-480.0,0.00020293,2]
[384659356,1757507448882,-480.0,0.00020293,2]
[384659359,1757507448899,-480.0,0.00020293,2]
[384659361,1757507448910,-480.0,0.00020293,2]
[384659363,1757507448921,-480.0,0.00020293,2]
[384659365,1757507448932,-480.0,0.00020293,2]
[384659367,1757507448941,-480.0,0.00020293,2]
[384659369,1757507448951,-480.0,0.00020293,2]
[384659371,1757507448962,-480.0,0.00020293,2]
[384659373,1757507448972,-480.0,0.00020293,2]
[384659375,1757507448982,-480.0,0.00020293,2]
[384659377,1757507448992,-480.0,0.00020293,2]
[384659379,1757507449001,-480.0,0.00020293,2]
[384659381,1757507449011,-480.0,0.00020293,2]
[384659383,1757507449021,-480.0,0.00020293,2]
[384659386,1757507449032,-480.0,0.00020293,2]
[384659387,1757507449043,-274.08408607,0.00020293,2]
[384659390,1757507449053,-480.0,0.00020293,2]
[384659392,1757507449063,-480.0,0.00020293,2]
[384659393,1757507449073,-480.0,0.00020293,2]
[384659396,1757507449082,-480.0,0.00020293,2]
[384659398,1757507449091,-480.0,0.00020293,2]
[384659399,1757507449102,-480.0,0.00020293,2]
[384659401,1757507449111,-480.0,0.00020293,2]
[384659403,1757507449121,-480.0,0.00020293,2]
[384659405,1757507449130,-480.0,0.00020293,2]
[384659407,1757507449141,-480.0,0.00020293,2]
[384659409,1757507449151,-480.0,0.00020293,2]
[384659410,1757507449169,-480.0,0.00020293,2]
[384659411,1757507449184,-480.0,0.00020293,2]
[384659412,1757507449194,-480.0,0.00020293,2]
[384659413,1757507449204,-480.0,0.00020293,2]
[384659414,1757507449214,-7206.87,0.00020293,2]
[384659415,1757507449223,-591.73725784,0.00020293,2]
[384659416,1757507449232,-480.0,0.00020293,2]
[384659417,1757507449242,-480.0,0.00020293,2]
[384659418,1757507449251,-480.0,0.00020293,2]
[384659419,1757507449261,-480.0,0.00020293,2]
[384659420,1757507449271,-480.0,0.00020293,2]
[384659422,1757507449280,-480.0,0.00020293,2]
[384659424,1757507449289,-480.0,0.00020293,2]
[384659426,1757507449298,-480.0,0.00020293,2]
[384659428,1757507449307,-480.0,0.00020293,2]
[384659430,1757507449316,-480.0,0.00020293,2]
[384659432,1757507449326,-480.0,0.00020293,2]
[384659434,1757507449335,-480.0,0.00020293,2]
[384659436,1757507449344,-480.0,0.00020293,2]
[384659438,1757507449354,-480.0,0.00020293,2]
[384659440,1757507449363,-480.0,0.00020293,2]
[384659442,1757507449372,-480.0,0.00020293,2]
[384659444,1757507449382,-480.0,0.00020293,2]
[384659446,1757507449391,-480.0,0.00020293,2]
[384659448,1757507449400,-480.0,0.00020293,2]
[384659450,1757507449409,-480.0,0.00020293,2]
[384659452,1757507449418,-480.0,0.00020293,2]
[384659454,1757507449430,-480.0,0.00020293,2]
[384659456,1757507449439,-480.0,0.00020293,2]
[384659458,1757507449449,-480.0,0.00020293,2]
[384659460,1757507449458,-480.0,0.00020293,2]
[384659462,1757507449467,-483.60409814,0.00020293,2]
[384659464,1757507449477,-480.0,0.00020293,2]
[384659466,1757507449486,-480.0,0.00020293,2]
[384659468,1757507449494,-480.0,0.00020293,2]
[384659470,1757507449504,-480.0,0.00020293,2]
[384659472,1757507449513,-480.0,0.00020293,2]
[384659474,1757507449522,-480.0,0.00020293,2]
[384659476,1757507449531,-480.0,0.00020293,2]
[384659478,1757507449541,-500.0,0.00020293,2]
[384659480,1757507449550,-480.56681057,0.00020293,2]
[384659482,1757507449559,-480.0,0.00020293,2]
[384659484,1757507449570,-480.0,0.00020293,2]
[384659486,1757507449581,-482.79201266,0.00020293,2]
[384659488,1757507449590,-480.0,0.00020293,2]
[384659490,1757507449599,-480.0,0.00020293,2]
[384659492,1757507449608,-480.0,0.00020293,2]
[384659494,1757507449617,-482.49203632,0.00020293,2]